[Event "Early-Titled-Tuesday-Blitz-March-26-2024"]
[Site "Chess.com"]
[Date "2024.03.26"]
[Round "5"]
[White "lukazz029"]
[Black "leoduarte"]
[Result "0-1"]
[WhiteElo "2009"]
[BlackElo "2412"]
[TimeControl "180+1"]
[EndTime "8:54:10 PDT"]
[Termination "leoduarte won by resignation"]

1. e4 {[%clk 0:03:00.9]} 1... c5 {[%clk 0:02:58]} 2. Nf3 {[%clk 0:02:59.8]} 2...
e6 {[%clk 0:02:58.4]} 3. d4 {[%clk 0:02:57]} 3... cxd4 {[%clk 0:02:58.8]} 4.
Nxd4 {[%clk 0:02:57.1]} 4... Nc6 {[%clk 0:02:58.7]} 5. c4 {[%clk 0:02:52.1]}
5... Nf6 {[%clk 0:02:58]} 6. Nc3 {[%clk 0:02:51]} 6... Bb4 {[%clk 0:02:58.3]} 7.
f3 {[%clk 0:02:44.7]} 7... d5 {[%clk 0:02:54.6]} 8. cxd5 {[%clk 0:02:32.9]} 8...
exd5 {[%clk 0:02:50.7]} 9. Bb5 {[%clk 0:02:24.3]} 9... Bd7 {[%clk 0:01:50]} 10.
exd5 {[%clk 0:02:11.4]} 10... Nxd5 {[%clk 0:01:00.2]} 11. Qe2+ {[%clk
0:02:06.2]} 11... Kf8 {[%clk 0:00:54.9]} 12. Nxc6 {[%clk 0:01:40.7]} 12... bxc6
{[%clk 0:00:53.4]} 13. Bc4 {[%clk 0:01:06.6]} 13... Nxc3 {[%clk 0:00:46.6]} 14.
bxc3 {[%clk 0:01:03.5]} 14... Bxc3+ {[%clk 0:00:45.2]} 15. Kf2 {[%clk
0:01:04.1]} 15... Bxa1 {[%clk 0:00:28.3]} 16. Ba3+ {[%clk 0:01:01.6]} 16... Kg8
{[%clk 0:00:28.9]} 17. Rxa1 {[%clk 0:01:01.4]} 17... Qb6+ {[%clk 0:00:28.8]} 18.
Kf1 {[%clk 0:00:58.1]} 18... Re8 {[%clk 0:00:28.9]} 19. Qd3 {[%clk 0:00:54.1]}
19... Be6 {[%clk 0:00:22.5]} 20. Re1 {[%clk 0:00:53.2]} 20... h6 {[%clk
0:00:13.8]} 21. Re2 {[%clk 0:00:32.9]} 21... Qd8 {[%clk 0:00:05]} 22. Qxd8
{[%clk 0:00:06.3]} 22... Rxd8 {[%clk 0:00:04.3]} 23. Bxe6 {[%clk 0:00:05.8]}
23... fxe6 {[%clk 0:00:04]} 24. Rxe6 {[%clk 0:00:06.7]} 24... Rd7 {[%clk
0:00:03.2]} 25. Rxc6 {[%clk 0:00:06.5]} 25... Kh7 {[%clk 0:00:03.8]} 26. Bb2
{[%clk 0:00:06.3]} 26... Rb8 {[%clk 0:00:03.8]} 27. Bc3 {[%clk 0:00:06.2]} 27...
Rb1+ {[%clk 0:00:03.9]} 28. Kf2 {[%clk 0:00:06.6]} 28... Rc1 {[%clk 0:00:04.5]}
29. Kg3 {[%clk 0:00:05.8]} 29... Rd3 {[%clk 0:00:04.2]} 30. Rc7 {[%clk
0:00:06.1]} 30... Rdxc3 {[%clk 0:00:04.2]} 31. Rxa7 {[%clk 0:00:06.4]} 31...
R1c2 {[%clk 0:00:04.1]} 32. a4 {[%clk 0:00:06.6]} 32... Ra3 {[%clk 0:00:04.7]}
33. a5 {[%clk 0:00:07]} 33... Raa2 {[%clk 0:00:05.4]} 34. a6 {[%clk 0:00:07.9]}
34... Rxg2+ {[%clk 0:00:05.7]} 35. Kf4 {[%clk 0:00:08.1]} 35... Rgb2 {[%clk
0:00:05.8]} 0-1

[Event "Early-Titled-Tuesday-Blitz-March-26-2024"]
[Site "Chess.com"]
[Date "2024.03.26"]
[Round "5"]
[White "DucksParadise"]
[Black "kyuotbi"]
[Result "1-0"]
[WhiteElo "2482"]
[BlackElo "2290"]
[TimeControl "180+1"]
[EndTime "8:54:11 PDT"]
[Termination "DucksParadise won by resignation"]

1. e4 {[%clk 0:03:00.9]} 1... e5 {[%clk 0:02:55.7]} 2. Nf3 {[%clk 0:02:59.9]}
2... Nc6 {[%clk 0:02:35.8]} 3. Nc3 {[%clk 0:02:57.3]} 3... Nf6 {[%clk
0:02:18.1]} 4. Bb5 {[%clk 0:02:55.7]} 4... Bb4 {[%clk 0:02:15]} 5. Nd5 {[%clk
0:02:51.2]} 5... Nxd5 {[%clk 0:02:05]} 6. exd5 {[%clk 0:02:52.1]} 6... Nd4
{[%clk 0:02:01.2]} 7. Nxd4 {[%clk 0:02:49.5]} 7... exd4 {[%clk 0:02:00.2]} 8.
O-O {[%clk 0:02:42.8]} 8... O-O {[%clk 0:01:57.9]} 9. c3 {[%clk 0:02:33.2]} 9...
Bd6 {[%clk 0:01:48.8]} 10. Qf3 {[%clk 0:02:23.3]} 10... c6 {[%clk 0:01:43.7]}
11. Bd3 {[%clk 0:02:18.2]} 11... Qh4 {[%clk 0:01:33.6]} 12. g3 {[%clk 0:02:13]}
12... Qg5 {[%clk 0:01:32.4]} 13. cxd4 {[%clk 0:02:00.2]} 13... cxd5 {[%clk
0:01:30.3]} 14. Re1 {[%clk 0:01:55]} 14... b6 {[%clk 0:01:20.1]} 15. h4 {[%clk
0:01:47.2]} 15... Qf6 {[%clk 0:01:15.3]} 16. Qxd5 {[%clk 0:01:17.7]} 16... Rb8
{[%clk 0:01:13.7]} 17. Qf5 {[%clk 0:01:12.9]} 17... Qxf5 {[%clk 0:01:11.7]} 18.
Bxf5 {[%clk 0:01:13.8]} 18... g6 {[%clk 0:01:11.9]} 19. Bd3 {[%clk 0:01:05.2]}
19... Bb7 {[%clk 0:01:09.3]} 20. b3 {[%clk 0:01:04.4]} 20... Rfe8 {[%clk
0:01:06.4]} 21. Bb2 {[%clk 0:01:02.4]} 21... Bb4 {[%clk 0:01:06.1]} 22. Bc3
{[%clk 0:01:02.1]} 22... Bd6 {[%clk 0:01:03.4]} 23. Re3 {[%clk 0:00:58.4]} 23...
Rbc8 {[%clk 0:00:46.6]} 24. Rae1 {[%clk 0:00:53.5]} 24... Rxe3 {[%clk
0:00:46.3]} 25. Rxe3 {[%clk 0:00:54.4]} 25... a6 {[%clk 0:00:43.1]} 26. a4
{[%clk 0:00:39.2]} 26... a5 {[%clk 0:00:38.9]} 27. Bc4 {[%clk 0:00:32.2]} 27...
Bc6 {[%clk 0:00:33.4]} 28. d5 {[%clk 0:00:25.1]} 28... Bxa4 {[%clk 0:00:31.8]}
29. bxa4 {[%clk 0:00:19.5]} 29... Rxc4 {[%clk 0:00:30.8]} 30. Re8+ {[%clk
0:00:19.1]} 30... Bf8 {[%clk 0:00:30]} 31. Bf6 {[%clk 0:00:16.3]} 31... h6
{[%clk 0:00:20.4]} 32. Be7 {[%clk 0:00:15.8]} 32... Re4 {[%clk 0:00:20.3]} 33.
Rxf8+ {[%clk 0:00:16]} 33... Kg7 {[%clk 0:00:19.9]} 34. Bd6 {[%clk 0:00:15.5]}
34... Rxa4 {[%clk 0:00:17.7]} 35. Rb8 {[%clk 0:00:15.4]} 35... Ra1+ {[%clk
0:00:16.6]} 36. Kg2 {[%clk 0:00:15.7]} 36... Rb1 {[%clk 0:00:17.1]} 37. Bc7
{[%clk 0:00:15.6]} 37... b5 {[%clk 0:00:15.9]} 38. Bxa5 {[%clk 0:00:15.8]} 38...
Kf6 {[%clk 0:00:15.9]} 39. Bc3+ {[%clk 0:00:15.6]} 39... Ke7 {[%clk 0:00:15.8]}
40. Rb6 {[%clk 0:00:15.5]} 40... d6 {[%clk 0:00:14.7]} 41. Rb7+ {[%clk
0:00:15.3]} 1-0

[Event "Early-Titled-Tuesday-Blitz-March-26-2024"]
[Site "Chess.com"]
[Date "2024.03.26"]
[Round "5"]
[White "eljanov"]
[Black "HansOnTwitch"]
[Result "0-1"]
[WhiteElo "2911"]
[BlackElo "3120"]
[TimeControl "180+1"]
[EndTime "8:54:13 PDT"]
[Termination "HansOnTwitch won by resignation"]

1. d4 {[%clk 0:03:00.9]} 1... Nf6 {[%clk 0:02:59.6]} 2. Bf4 {[%clk 0:03:00.8]}
2... d5 {[%clk 0:02:55.8]} 3. e3 {[%clk 0:03:01.1]} 3... c5 {[%clk 0:02:55.4]}
4. Nf3 {[%clk 0:02:59.9]} 4... Nc6 {[%clk 0:02:54.2]} 5. Nbd2 {[%clk 0:02:59.3]}
5... e6 {[%clk 0:02:47.2]} 6. c3 {[%clk 0:02:59]} 6... Nh5 {[%clk 0:02:47.7]} 7.
Bg5 {[%clk 0:02:55.7]} 7... f6 {[%clk 0:02:48]} 8. Bh4 {[%clk 0:02:56.1]} 8...
g6 {[%clk 0:02:48.7]} 9. Rc1 {[%clk 0:02:53.3]} 9... Bd7 {[%clk 0:02:39.5]} 10.
Be2 {[%clk 0:02:48.4]} 10... cxd4 {[%clk 0:02:38.8]} 11. cxd4 {[%clk 0:02:48.2]}
11... Be7 {[%clk 0:02:35.3]} 12. O-O {[%clk 0:02:47.9]} 12... Ng7 {[%clk
0:02:30.6]} 13. g4 {[%clk 0:02:31.2]} 13... h5 {[%clk 0:02:25.7]} 14. h3 {[%clk
0:02:29.2]} 14... hxg4 {[%clk 0:02:19.7]} 15. hxg4 {[%clk 0:02:30.1]} 15... e5
{[%clk 0:02:19.3]} 16. dxe5 {[%clk 0:02:28.1]} 16... fxe5 {[%clk 0:02:15.9]} 17.
Bg3 {[%clk 0:02:19.3]} 17... e4 {[%clk 0:02:13.7]} 18. Ne5 {[%clk 0:02:13.5]}
18... Nxe5 {[%clk 0:01:55.7]} 19. Bxe5 {[%clk 0:02:13.5]} 19... Bf6 {[%clk
0:01:56.1]} 20. Bg3 {[%clk 0:02:13.6]} 20... Bh4 {[%clk 0:01:53.1]} 21. Qb3
{[%clk 0:02:04.9]} 21... Bxg3 {[%clk 0:01:50]} 22. fxg3 {[%clk 0:02:05.2]} 22...
Bc6 {[%clk 0:01:07.2]} 23. Kg2 {[%clk 0:01:55.9]} 23... Qd7 {[%clk 0:00:53.2]}
24. Qc3 {[%clk 0:01:47]} 24... O-O-O {[%clk 0:00:39.1]} 25. Bb5 {[%clk
0:01:13.2]} 25... Kc7 {[%clk 0:00:16.9]} 26. Qe5+ {[%clk 0:01:09.8]} 26... Kb6
{[%clk 0:00:14]} 27. Bxc6 {[%clk 0:01:09.6]} 27... bxc6 {[%clk 0:00:12.8]} 28.
Rf6 {[%clk 0:00:50.5]} 28... Rc8 {[%clk 0:00:12.4]} 29. Rxg6 {[%clk 0:00:48.4]}
29... Rh7 {[%clk 0:00:07.9]} 30. Nb3 {[%clk 0:00:46.6]} 30... Rch8 {[%clk
0:00:01.5]} 31. Qd4+ {[%clk 0:00:44.2]} 31... Kb7 {[%clk 0:00:02.1]} 32. Nc5+
{[%clk 0:00:34.3]} 32... Ka8 {[%clk 0:00:02.5]} 33. Rg1 {[%clk 0:00:17.2]} 33...
Rh2+ {[%clk 0:00:02.8]} 34. Kf1 {[%clk 0:00:17.7]} 34... Rf8+ {[%clk 0:00:03.2]}
35. Rf6 {[%clk 0:00:16.9]} 35... Qe7 {[%clk 0:00:03.8]} 36. g5 {[%clk
0:00:16.2]} 36... Nh5 {[%clk 0:00:04.5]} 37. Qe5 {[%clk 0:00:12.4]} 37... Qxc5
{[%clk 0:00:03.6]} 0-1

[Event "Early-Titled-Tuesday-Blitz-March-26-2024"]
[Site "Chess.com"]
[Date "2024.03.26"]
[Round "5"]
[White "rionelG"]
[Black "Herzog2012"]
[Result "0-1"]
[WhiteElo "2200"]
[BlackElo "2531"]
[TimeControl "180+1"]
[EndTime "8:54:13 PDT"]
[Termination "Herzog2012 won on time"]

1. e4 {[%clk 0:03:00.9]} 1... c5 {[%clk 0:02:50.8]} 2. Nf3 {[%clk 0:03:00.2]}
2... d6 {[%clk 0:02:50.6]} 3. d4 {[%clk 0:02:59.8]} 3... cxd4 {[%clk 0:02:50.5]}
4. Nxd4 {[%clk 0:03:00.7]} 4... Nf6 {[%clk 0:02:50.7]} 5. Nc3 {[%clk 0:03:01]}
5... Nc6 {[%clk 0:02:51.2]} 6. Nd5 {[%clk 0:03:00.5]} 6... Nxd5 {[%clk
0:02:48.7]} 7. exd5 {[%clk 0:02:59.4]} 7... Qa5+ {[%clk 0:02:48.7]} 8. Bd2
{[%clk 0:02:58.3]} 8... Qxd5 {[%clk 0:02:45.1]} 9. Nb5 {[%clk 0:02:58.5]} 9...
Qe6+ {[%clk 0:02:41.5]} 10. Be2 {[%clk 0:02:58.2]} 10... Qd7 {[%clk 0:02:41.1]}
11. c4 {[%clk 0:02:47.5]} 11... e6 {[%clk 0:02:22.4]} 12. Bf4 {[%clk 0:02:45.3]}
12... e5 {[%clk 0:02:05]} 13. Be3 {[%clk 0:02:44.6]} 13... Be7 {[%clk
0:01:59.6]} 14. O-O {[%clk 0:02:35]} 14... O-O {[%clk 0:01:54]} 15. Qd2 {[%clk
0:02:06.5]} 15... f5 {[%clk 0:01:21.7]} 16. f4 {[%clk 0:02:04.5]} 16... Rd8
{[%clk 0:01:02.4]} 17. Rfd1 {[%clk 0:01:57.1]} 17... Bf6 {[%clk 0:00:51.4]} 18.
Rac1 {[%clk 0:01:32.8]} 18... Qe7 {[%clk 0:00:43.4]} 19. Nxd6 {[%clk 0:01:15.2]}
19... exf4 {[%clk 0:00:39.2]} 20. Bc5 {[%clk 0:00:59.8]} 20... Bd4+ {[%clk
0:00:34.3]} 21. Bxd4 {[%clk 0:00:57.9]} 21... Rxd6 {[%clk 0:00:32]} 22. Bf3
{[%clk 0:00:34.9]} 22... Rxd4 {[%clk 0:00:27.5]} 23. Qc2 {[%clk 0:00:20.8]}
23... Qe3+ {[%clk 0:00:23.5]} 24. Kh1 {[%clk 0:00:20.7]} 24... Rxd1+ {[%clk
0:00:16.3]} 25. Rxd1 {[%clk 0:00:19.7]} 25... Nd4 {[%clk 0:00:16.8]} 26. Qa4
{[%clk 0:00:13.6]} 26... Nxf3 {[%clk 0:00:10.4]} 27. Rd8+ {[%clk 0:00:10.1]}
27... Kf7 {[%clk 0:00:10.6]} 28. gxf3 {[%clk 0:00:08.7]} 28... Qxf3+ {[%clk
0:00:08.4]} 29. Kg1 {[%clk 0:00:09.3]} 29... Qe3+ {[%clk 0:00:08.6]} 30. Kh1
{[%clk 0:00:09.6]} 30... f3 {[%clk 0:00:04]} 31. Rd1 {[%clk 0:00:04.1]} 31... f2
{[%clk 0:00:03.4]} 32. Kg2 {[%clk 0:00:01.5]} 32... Qe2 {[%clk 0:00:03.7]} 33.
Qb3 {[%clk 0:00:01]} 33... Be6 {[%clk 0:00:02.3]} 0-1

[Event "Early-Titled-Tuesday-Blitz-March-26-2024"]
[Site "Chess.com"]
[Date "2024.03.26"]
[Round "5"]
[White "bazar-wokzal"]
[Black "kidagent"]
[Result "1-0"]
[WhiteElo "2565"]
[BlackElo "2328"]
[TimeControl "180+1"]
[EndTime "8:54:14 PDT"]
[Termination "bazar-wokzal won by checkmate"]

1. e4 {[%clk 0:03:00.9]} 1... c6 {[%clk 0:03:00.4]} 2. d4 {[%clk 0:03:00.5]}
2... d5 {[%clk 0:03:01.1]} 3. e5 {[%clk 0:03:00.4]} 3... Bf5 {[%clk 0:03:00.8]}
4. Nc3 {[%clk 0:02:59.2]} 4... e6 {[%clk 0:02:59.9]} 5. g4 {[%clk 0:02:58]} 5...
Bg6 {[%clk 0:02:59.9]} 6. Nge2 {[%clk 0:02:56.7]} 6... c5 {[%clk 0:03:00.1]} 7.
Be3 {[%clk 0:02:56]} 7... Nc6 {[%clk 0:02:58.1]} 8. dxc5 {[%clk 0:02:54.5]} 8...
Nxe5 {[%clk 0:02:54.9]} 9. Nf4 {[%clk 0:02:53.3]} 9... Nf6 {[%clk 0:02:52.1]}
10. Bb5+ {[%clk 0:02:17.4]} 10... Nfd7 {[%clk 0:02:51.7]} 11. Qe2 {[%clk
0:02:17]} 11... a6 {[%clk 0:02:49.2]} 12. Ba4 {[%clk 0:02:15.1]} 12... Rc8
{[%clk 0:02:37.9]} 13. Bd4 {[%clk 0:02:07.6]} 13... Nc6 {[%clk 0:02:27.9]} 14.
O-O-O {[%clk 0:01:58.7]} 14... Nxd4 {[%clk 0:02:25.1]} 15. Rxd4 {[%clk
0:01:57.8]} 15... Bxc5 {[%clk 0:02:23.5]} 16. Rxd5 {[%clk 0:01:35.8]} 16... b5
{[%clk 0:02:21.3]} 17. Rhd1 {[%clk 0:01:34.5]} 17... Qb6 {[%clk 0:01:50.6]} 18.
Rxd7 {[%clk 0:01:28]} 18... bxa4 {[%clk 0:01:48.5]} 19. Nxa4 {[%clk 0:01:25.1]}
19... Qc6 {[%clk 0:01:30]} 20. Nxc5 {[%clk 0:01:21.8]} 20... Qxc5 {[%clk
0:01:29.8]} 21. Nxg6 {[%clk 0:01:14.7]} 21... hxg6 {[%clk 0:01:24.8]} 22. c3
{[%clk 0:00:56.8]} 22... O-O {[%clk 0:01:15.9]} 23. Qxa6 {[%clk 0:00:49]} 23...
Qxf2 {[%clk 0:01:15.4]} 24. R7d2 {[%clk 0:00:23.7]} 24... Qf3 {[%clk 0:01:05.5]}
25. Qe2 {[%clk 0:00:22.8]} 25... Qf4 {[%clk 0:00:58.6]} 26. Kb1 {[%clk
0:00:21.9]} 26... Rb8 {[%clk 0:00:55.2]} 27. Rd4 {[%clk 0:00:21.9]} 27... Qc7
{[%clk 0:00:51.9]} 28. R1d3 {[%clk 0:00:21.4]} 28... Rfc8 {[%clk 0:00:44.2]} 29.
a4 {[%clk 0:00:20.8]} 29... Qa5 {[%clk 0:00:38]} 30. Qd2 {[%clk 0:00:19.1]}
30... Rb3 {[%clk 0:00:30.4]} 31. Rd8+ {[%clk 0:00:14.9]} 31... Rxd8 {[%clk
0:00:29.2]} 32. Rxd8+ {[%clk 0:00:15.8]} 32... Kh7 {[%clk 0:00:29.5]} 33. Rd4
{[%clk 0:00:14.6]} 33... Rb7 {[%clk 0:00:21.2]} 34. g5 {[%clk 0:00:14.3]} 34...
f6 {[%clk 0:00:15.2]} 35. gxf6 {[%clk 0:00:13.5]} 35... gxf6 {[%clk 0:00:15]}
36. Rd6 {[%clk 0:00:13.8]} 36... Re7 {[%clk 0:00:13.5]} 37. Qd4 {[%clk
0:00:12.1]} 37... e5 {[%clk 0:00:13]} 38. Qb4 {[%clk 0:00:12.2]} 38... Qa7
{[%clk 0:00:12.7]} 39. a5 {[%clk 0:00:11.6]} 39... Rb7 {[%clk 0:00:12.1]} 40.
Qh4+ {[%clk 0:00:10.6]} 40... Kg7 {[%clk 0:00:11.9]} 41. Qxf6+ {[%clk
0:00:10.8]} 41... Kh7 {[%clk 0:00:11.2]} 42. Qxg6+ {[%clk 0:00:11.3]} 42... Kh8
{[%clk 0:00:11]} 43. Rd8# {[%clk 0:00:12.1]} 1-0

[Event "Early-Titled-Tuesday-Blitz-March-26-2024"]
[Site "Chess.com"]
[Date "2024.03.26"]
[Round "5"]
[White "MaxLeto"]
[Black "Let_it_be_1"]
[Result "0-1"]
[WhiteElo "2490"]
[BlackElo "2671"]
[TimeControl "180+1"]
[EndTime "8:54:15 PDT"]
[Termination "Let_it_be_1 won on time"]

1. g4 {[%clk 0:02:23.2]} 1... d5 {[%clk 0:02:59.7]} 2. Bg2 {[%clk 0:02:23.4]}
2... c6 {[%clk 0:02:57.2]} 3. h3 {[%clk 0:02:22.5]} 3... h5 {[%clk 0:02:56.5]}
4. g5 {[%clk 0:02:21.7]} 4... e5 {[%clk 0:02:56.5]} 5. d4 {[%clk 0:02:20.8]}
5... e4 {[%clk 0:02:53.3]} 6. c4 {[%clk 0:02:21]} 6... f6 {[%clk 0:02:37.9]} 7.
h4 {[%clk 0:01:54.4]} 7... fxg5 {[%clk 0:02:37]} 8. Bxg5 {[%clk 0:01:49.7]} 8...
Be7 {[%clk 0:02:35.9]} 9. Qd2 {[%clk 0:01:47.3]} 9... Nf6 {[%clk 0:02:26.5]} 10.
Nc3 {[%clk 0:01:45.5]} 10... O-O {[%clk 0:02:12.4]} 11. Nh3 {[%clk 0:01:40.8]}
11... Bf5 {[%clk 0:02:03.3]} 12. Nf4 {[%clk 0:01:33.7]} 12... dxc4 {[%clk
0:01:58]} 13. f3 {[%clk 0:01:27.2]} 13... exf3 {[%clk 0:01:56.5]} 14. Bxf3
{[%clk 0:01:28.1]} 14... Qe8 {[%clk 0:01:25.6]} 15. O-O-O {[%clk 0:01:20.6]}
15... Nbd7 {[%clk 0:01:10.4]} 16. e4 {[%clk 0:01:09]} 16... Bg4 {[%clk
0:01:10.3]} 17. Bxg4 {[%clk 0:01:09.5]} 17... Nxg4 {[%clk 0:01:09.3]} 18. Bxe7
{[%clk 0:00:39.7]} 18... Qxe7 {[%clk 0:01:08.2]} 19. Ng6 {[%clk 0:00:40.3]}
19... Qd6 {[%clk 0:00:50.1]} 20. Nxf8 {[%clk 0:00:39.9]} 20... Rxf8 {[%clk
0:00:50.4]} 21. Rdf1 {[%clk 0:00:33.1]} 21... b5 {[%clk 0:00:48.4]} 22. e5
{[%clk 0:00:30]} 22... Qg6 {[%clk 0:00:42]} 23. Qg5 {[%clk 0:00:21.6]} 23... Qd3
{[%clk 0:00:36.4]} 24. Rd1 {[%clk 0:00:16]} 24... Qh7 {[%clk 0:00:19.7]} 25.
Rhe1 {[%clk 0:00:03.9]} 25... Nf2 {[%clk 0:00:18.7]} 26. Rf1 {[%clk 0:00:01.6]}
26... Nd3+ {[%clk 0:00:17.9]} 27. Kd2 {[%clk 0:00:01.2]} 27... b4 {[%clk
0:00:15.8]} 28. Rxf8+ {[%clk 0:00:01]} 28... Nxf8 {[%clk 0:00:16]} 29. Ne2
{[%clk 0:00:01.7]} 29... Nf2 {[%clk 0:00:14.5]} 30. Rg1 {[%clk 0:00:02.6]} 30...
Ne4+ {[%clk 0:00:14.4]} 31. Ke3 {[%clk 0:00:02.7]} 31... Nxg5 {[%clk 0:00:14.8]}
32. hxg5 {[%clk 0:00:03.6]} 32... Qd3+ {[%clk 0:00:15]} 33. Kf2 {[%clk
0:00:03.5]} 33... Ne6 {[%clk 0:00:15.2]} 34. Rg3 {[%clk 0:00:04.1]} 34... Qe4
{[%clk 0:00:14.5]} 35. Rd3 {[%clk 0:00:01.9]} 35... cxd3 {[%clk 0:00:14]} 0-1

[Event "Early-Titled-Tuesday-Blitz-March-26-2024"]
[Site "Chess.com"]
[Date "2024.03.26"]
[Round "5"]
[White "nabukatnezarr"]
[Black "Oligan22"]
[Result "1-0"]
[WhiteElo "2596"]
[BlackElo "2416"]
[TimeControl "180+1"]
[EndTime "8:54:20 PDT"]
[Termination "nabukatnezarr won by resignation"]

1. e4 {[%clk 0:02:58.9]} 1... c5 {[%clk 0:03:00.1]} 2. Nf3 {[%clk 0:02:56]} 2...
d6 {[%clk 0:03:00.3]} 3. c3 {[%clk 0:02:54.3]} 3... Nf6 {[%clk 0:02:56.9]} 4.
Qc2 {[%clk 0:02:42.9]} 4... Nc6 {[%clk 0:02:52.3]} 5. d4 {[%clk 0:02:33.6]} 5...
cxd4 {[%clk 0:02:34.2]} 6. cxd4 {[%clk 0:02:34.5]} 6... Qb6 {[%clk 0:02:34.2]}
7. Nc3 {[%clk 0:01:59.4]} 7... Nxd4 {[%clk 0:02:29.7]} 8. Nxd4 {[%clk
0:02:00.3]} 8... Qxd4 {[%clk 0:02:30]} 9. Nb5 {[%clk 0:01:51.6]} 9... Qxe4+
{[%clk 0:02:12.8]} 10. Qxe4 {[%clk 0:01:50.5]} 10... Nxe4 {[%clk 0:02:13.7]} 11.
Nc7+ {[%clk 0:01:50.5]} 11... Kd8 {[%clk 0:02:00.7]} 12. Nxa8 {[%clk 0:01:51.4]}
12... b6 {[%clk 0:01:59.1]} 13. Be3 {[%clk 0:01:16.8]} 13... Bb7 {[%clk
0:01:59.2]} 14. Nxb6 {[%clk 0:01:15.8]} 14... axb6 {[%clk 0:02:00.1]} 15. Bxb6+
{[%clk 0:01:16.2]} 15... Kd7 {[%clk 0:01:54.4]} 16. Rc1 {[%clk 0:01:08.1]} 16...
Bd5 {[%clk 0:01:39.5]} 17. Bb5+ {[%clk 0:01:01.3]} 17... Ke6 {[%clk 0:01:39.3]}
18. O-O {[%clk 0:00:55.9]} 18... f5 {[%clk 0:01:30.7]} 19. Rfe1 {[%clk
0:00:55.4]} 19... Kf7 {[%clk 0:01:28]} 20. b3 {[%clk 0:00:54.6]} 20... g6 {[%clk
0:01:23.1]} 21. Rc8 {[%clk 0:00:43.6]} 21... Bg7 {[%clk 0:01:13.4]} 22. Rxh8
{[%clk 0:00:42.9]} 22... Bxh8 {[%clk 0:01:14.3]} 23. Bc4 {[%clk 0:00:24.8]}
23... Bxc4 {[%clk 0:01:10.8]} 24. bxc4 {[%clk 0:00:25.7]} 24... Bc3 {[%clk
0:01:00.2]} 25. Rf1 {[%clk 0:00:16.4]} 25... Ke6 {[%clk 0:00:57.1]} 26. a4
{[%clk 0:00:15.2]} 26... Kd7 {[%clk 0:00:57.4]} 27. a5 {[%clk 0:00:14.6]} 27...
Kc6 {[%clk 0:00:57.8]} 28. Rc1 {[%clk 0:00:12.3]} 28... Bb4 {[%clk 0:00:55.2]}
29. Rb1 {[%clk 0:00:10]} 29... Bc5 {[%clk 0:00:55.4]} 30. Bxc5 {[%clk
0:00:09.8]} 30... Nxc5 {[%clk 0:00:56.3]} 31. Rb6+ {[%clk 0:00:09.7]} 31... Kc7
{[%clk 0:00:56.8]} 32. Kf1 {[%clk 0:00:09.1]} 32... Nb7 {[%clk 0:00:51.2]} 33.
Rb5 {[%clk 0:00:09.3]} 33... Nc5 {[%clk 0:00:41.9]} 34. f4 {[%clk 0:00:09.9]}
34... Kc6 {[%clk 0:00:37.6]} 35. Ke2 {[%clk 0:00:09.7]} 35... e5 {[%clk
0:00:37.1]} 36. fxe5 {[%clk 0:00:09.5]} 36... dxe5 {[%clk 0:00:38]} 37. Rb6+
{[%clk 0:00:10.1]} 37... Kc7 {[%clk 0:00:38]} 38. Ke3 {[%clk 0:00:08.8]} 38...
Nd7 {[%clk 0:00:30.6]} 39. Rb5 {[%clk 0:00:08.6]} 39... Nb8 {[%clk 0:00:20.1]}
40. Rxe5 {[%clk 0:00:07.7]} 40... Nc6 {[%clk 0:00:20.6]} 41. Rc5 {[%clk
0:00:08.2]} 41... Kd6 {[%clk 0:00:20.9]} 42. Rxc6+ {[%clk 0:00:08.6]} 42... Kxc6
{[%clk 0:00:21.8]} 43. Kf4 {[%clk 0:00:08.9]} 43... h6 {[%clk 0:00:18.8]} 44. h4
{[%clk 0:00:09.2]} 44... Kc5 {[%clk 0:00:17.8]} 45. Ke5 {[%clk 0:00:09.9]} 45...
Kc6 {[%clk 0:00:16.6]} 46. Kf6 {[%clk 0:00:09.1]} 1-0

[Event "Early-Titled-Tuesday-Blitz-March-26-2024"]
[Site "Chess.com"]
[Date "2024.03.26"]
[Round "5"]
[White "PawnEatingZombie"]
[Black "ArturoCaceres"]
[Result "1/2-1/2"]
[WhiteElo "2195"]
[BlackElo "2439"]
[TimeControl "180+1"]
[EndTime "8:54:20 PDT"]
[Termination "Game drawn by repetition"]

1. e4 {[%clk 0:02:37.8]} 1... d5 {[%clk 0:02:56.7]} 2. exd5 {[%clk 0:02:36.5]}
2... f6 {[%clk 0:02:57.1]} 3. Bc4 {[%clk 0:02:31.8]} 3... g6 {[%clk 0:02:56.3]}
4. Nc3 {[%clk 0:02:30.7]} 4... Bg7 {[%clk 0:02:56.8]} 5. h4 {[%clk 0:02:28.8]}
5... Nh6 {[%clk 0:02:55.7]} 6. h5 {[%clk 0:02:28.1]} 6... g5 {[%clk 0:02:55.4]}
7. d4 {[%clk 0:02:23.8]} 7... a6 {[%clk 0:02:51.4]} 8. a4 {[%clk 0:02:22.9]}
8... b6 {[%clk 0:02:49.5]} 9. Nge2 {[%clk 0:02:19.8]} 9... Qd6 {[%clk
0:02:44.4]} 10. Ng3 {[%clk 0:02:12]} 10... Bg4 {[%clk 0:02:43.1]} 11. Qd3 {[%clk
0:02:02.4]} 11... Qd7 {[%clk 0:02:38.1]} 12. f3 {[%clk 0:01:49.5]} 12... Bf5
{[%clk 0:02:37.7]} 13. Nxf5 {[%clk 0:01:49.6]} 13... Qxf5 {[%clk 0:02:38.4]} 14.
Ne4 {[%clk 0:01:39.3]} 14... Qd7 {[%clk 0:02:25.2]} 15. Bd2 {[%clk 0:01:25]}
15... Nf5 {[%clk 0:02:17]} 16. Bb3 {[%clk 0:01:08.5]} 16... Nh4 {[%clk
0:02:06.4]} 17. Kf2 {[%clk 0:01:06.9]} 17... a5 {[%clk 0:01:29.1]} 18. Rae1
{[%clk 0:01:06.1]} 18... Kd8 {[%clk 0:01:28.9]} 19. Re2 {[%clk 0:00:49.7]} 19...
Nf5 {[%clk 0:01:27.5]} 20. Rhe1 {[%clk 0:00:47.1]} 20... Re8 {[%clk 0:01:22.3]}
21. g4 {[%clk 0:00:45.9]} 21... Nd6 {[%clk 0:01:19.1]} 22. Nc5 {[%clk
0:00:45.8]} 22... bxc5 {[%clk 0:01:15]} 23. dxc5 {[%clk 0:00:46.7]} 23... Nb7
{[%clk 0:00:32.1]} 24. Qxh7 {[%clk 0:00:40.6]} 24... Nxc5 {[%clk 0:00:29.1]} 25.
Qxg7 {[%clk 0:00:38.7]} 25... Qd6 {[%clk 0:00:29.8]} 26. Kg2 {[%clk 0:00:32.3]}
26... Nbd7 {[%clk 0:00:30.4]} 27. h6 {[%clk 0:00:29.2]} 27... Kc8 {[%clk
0:00:28.3]} 28. h7 {[%clk 0:00:28.8]} 28... Kb7 {[%clk 0:00:27.5]} 29. Bc3
{[%clk 0:00:11.8]} 29... Rh8 {[%clk 0:00:24.7]} 30. Bc4 {[%clk 0:00:08.3]} 30...
Nxa4 {[%clk 0:00:14.9]} 31. Rxe7 {[%clk 0:00:08.3]} 31... Nxc3 {[%clk
0:00:13.1]} 32. Rxd7 {[%clk 0:00:07.6]} 32... Qc5 {[%clk 0:00:12.8]} 33. bxc3
{[%clk 0:00:07]} 33... Qxc4 {[%clk 0:00:13]} 34. Ree7 {[%clk 0:00:06.5]} 34...
Rac8 {[%clk 0:00:09.1]} 35. Rxc7+ {[%clk 0:00:05.5]} 35... Rxc7 {[%clk
0:00:08.1]} 36. Rxc7+ {[%clk 0:00:06.2]} 36... Qxc7 {[%clk 0:00:08.2]} 37. Qxh8
{[%clk 0:00:06.9]} 37... Qe7 {[%clk 0:00:05.6]} 38. Qg8 {[%clk 0:00:06.2]} 38...
Qe2+ {[%clk 0:00:04.8]} 39. Kg3 {[%clk 0:00:06.4]} 39... Qe1+ {[%clk 0:00:05.3]}
40. Kg2 {[%clk 0:00:06.8]} 40... Qe2+ {[%clk 0:00:05.7]} 41. Kg3 {[%clk
0:00:07.2]} 41... Qe1+ {[%clk 0:00:06.3]} 42. Kg2 {[%clk 0:00:07.7]} 42... Qe2+
{[%clk 0:00:06.9]} 1/2-1/2